Workbook

Sheet Wall Temperature Calculation
H2: Instantaneous wall temperature - heating a supercritical fluid in a heat exchanger
I3: Version 1.0 | O3: For Educational Use Only!
I4: Report errors to R. L. Smith; Email: smith@scf.che.tohoku.ac.jp
I5: CO2 properties v7.0
I6: H2O properties v7.0
L8: Fluid conditions | P8: Heat exchanger dimensions
M9: Flow at time t | P9: L [mm]: | Q9: 2743
L10: Hot fluid (H2O)-Shell (annulus) | P10: Tube side
L11: mass flow rate [kg/s]: | M11: =N11/60 -> 0.07338833333 | N11: 4.4033 | O11: kg/min | P11: di [mm]: | Q11: 10.922
L12: Thot [C]: | M12: 31.218 | P12: do [mm]: | Q12: 12.7
L13: Phot [MPa]: | M13: 0.531 | P13: kw [W/(m K)]: | Q13: 16
L14: H [kJ/kg]: | M14: =h_tp2(M12,M13*1000000)/1000 -> 131.3037887 | P14: dlnmean [mm]: | Q14: =(Q12-Q11)/LN(Q12/Q11) -> 11.78866154
P15: Shell side
L16: <v> [m/s]: | M16: =M11/(M19*M18) -> 0.8308482357 | P16: di [mm]: | Q16: 16.561
L17: Lc [m] | M17: =4*M18/(PI()*(Q12+Q16)/1000) -> 0.003861 | P17: do [mm]: | Q17: 19.05
L18: Cross-sectional area [m2]: | M18: =PI()*(Q16^2-Q12^2)/4/1000000 -> 8.873170918e-05 | P18: kw [W/(m K)]: | Q18: 16
L19: r [kg/m3]: | M19: =rho_tp2(M12,M13*1000000) -> 995.4661018 | P19: rH [mm]:
L20: Cp [kJ/(kg K)]: | M20: =cp_tp2(M12,M13*1000000)/1000 -> 4.178456231 | P20: dH [mm]:
L21: m [Pa s]: | M21: =vmu_tp2(M12,M13*1000000) -> 0.0007774450791 | P21: Inner wall properties
L22: k [W/(m K)]: | M22: =k_tp2(M12,M13*1000000) -> 0.622662386
L24: Re [-]: | M24: =M16*M17*M19/M21 -> 4107.50651
L25: Pr [-]: | M25: =M20*1000*M21/M22 -> 5.217145452 | P25: Local heat transfer coefficients
L26: Nu, bulk [-]: | M26: =0.023*M24^0.8*M25^(1/3) -> 31.0266409 | P26: hi [W/(m2 K)]: | R26: Tc [C] | S26: =co2_tc() -> 30.9782
L27: ho [W/(m2 K)]: | M27: =M26*M22/M17 -> 5003.657667 | P27: ho [W/(m2 K)]: | R27: rhoc [kg/m3] | S27: =co2_rhoc() -> 467.6
R28: Pc [MPa] | S28: =co2_pc()/1000000 -> 7.3773
P29: Resistances
L30: Cold fluid (CO2)-Tube (tube) | Q30: Cold fluid properties
L31: mass flow rate [kg/s]: | M31: =N31/60 -> 0.03475 | N31: 2.085 | O31: kg/min
L32: Tcold [C]: | M32: 24.248 | Q32: T [C] | R32: P [MPa] | S32: Cp [kJ/(kg K)] | T32: rho [kg/m3]
L33: Pcold [MPa]: | M33: 8.586 | Q33: 30 | R33: =M33 -> 8.586 | S33: =cp_tp1(Q33,R33*1000000)/1000 -> 4.18350188 | T33: =rho_tp1(Q33,R33*1000000) -> 729.6023939
L34: H [kJ/kg]: | M34: =H_TP1(M32,M33*1000000)/1000 -> 258.2288242 | Q34: 30.5 | R34: =R33 -> 8.586 | S34: =cp_tp1(Q34,R34*1000000)/1000 -> 4.340460766 | T34: =rho_tp1(Q34,R34*1000000) -> 722.0071634
Q35: 31 | R35: =R34 -> 8.586 | S35: 4.520202993 | T35: 714.0069101
L36: <v> [m/s]: | M36: =M31/(M39*M38) -> 0.4644566673 | Q36: 31.5 | R36: 8.586 | S36: 4.728070377 | T36: 705.5415917
L37: Lc [m] | M37: =4*M38/(PI()*Q11/1000) -> 0.010922 | Q37: 32 | R37: 8.586 | S37: 4.971036703 | T37: 696.536945
L38: Cross-sectional area [m2]: | M38: =PI()*Q11^2/4/1000000 -> 9.369021289e-05 | Q38: 32.5 | R38: 8.586 | S38: 5.258351394 | T38: 686.9001332
L39: r [kg/m3]: | M39: =rho_tp1(M32,M33*1000000) -> 798.5743958 | Q39: 33 | R39: 8.586 | S39: 5.602521458 | T39: 676.5136943
L40: Cp [kJ/(kg K)]: | M40: =cp_tp1(M32,M33*1000000)/1000 -> 3.188373794 | Q40: 33.5 | R40: 8.586 | S40: 6.020829011 | T40: 665.2269384
L41: m [Pa s]: | M41: =VMU_TP1(M32,M33*1000000) -> 7.144061871e-05 | Q41: 34 | R41: 8.586 | S41: 6.537635388 | T41: 652.8435656
L42: k [W/(m K)]: | M42: =k_TP1(M32,M33*1000000) -> 0.09170690394 | Q42: 34.5 | R42: 8.586 | S42: 7.187634552 | T42: 639.1040847
L43: Outside area [m2]: | M43: =PI()*Q12/1000*Q9/1000 -> 0.1094408358 | Q43: 35 | R43: 8.586 | S43: 8.019812208 | T43: 623.6624883
Q44: 35.5 | R44: 8.586 | S44: 9.102215495 | T44: 606.0594338
L45: Re [-]: | M45: =M36*M37*M39/M41 -> 56704.50299 | Q45: 36 | R45: 8.586 | S45: 10.53614135 | T45: 585.6920688
L46: Pr [-]: | M46: =M40*1000*M41/M42 -> 2.483775886 | N46: NuST [-] | Q46: 36.5 | R46: 8.586 | S46: 12.48938983 | T46: 561.7568859
L47: Nu, bulk [-]: | M47: =0.023*M45^0.8*M46^0.4 -> 210.2165175 | N47: =0.027*M45^0.8*M46^(1/3)*(VMU_TP1(M32,M33*1000000)/VMU_TP1(M63,M33*1000000))^0.14 -> 237.0508947 | Q47: 37 | R47: 8.586 | S47: 14.97028019 | T47: 533.3441474
L48: hi [W/(m2 K)]: | M48: =M47*M42/M37 -> 1765.089359 | N48: =N47*M42/M37 -> 1990.40502 | Q48: 37.5 | R48: 8.586 | S48: 16.92966855 | T48: 500.8534154
L49: Driving force | Q49: 38 | R49: 8.586 | S49: 17.21930557 | T49: 467.5775606
L50: DT [C]: | M50: =M12-M32 -> 6.97 | Q50: 38.5 | R50: 8.586 | S50: 16.26881061 | T50: 436.7636703
L51: Resistances | N51: Heat flux q [W/m2] | O51: Location | Q51: 39 | R51: =R50 -> 8.586 | S51: 14.11982308 | T51: 410.6612298
L52: Ri [(m2 K)/W]: | M52: =(1/(M48*2*PI()*Q11/2/1000*Q9/1000))*M43 -> 0.0006587715755 | N52: =(M63-M62)/M52 -> 8115.810812 | O52: 1 | Q52: 39.5 | R52: 8.586 | S52: 12.00442755 | T52: 389.6547169
L53: Rw [(m2 K)/W]: | M53: =(LN(Q12/Q11)/(M27*2*PI()*Q9/1000))*M43 -> 1.914050508e-07 | N53: =(M64-M63)/M53 -> 8115.864233 | O53: 2 | Q53: 40 | R53: 8.586 | S53: 10.32695354 | T53: 372.674681
L54: Ro [(m2 K)/W]: | M54: =(1/(M27*2*PI()*Q12/2/1000*Q9/1000))*M43 -> 0.0001998538003 | N54: =(M65-M64)/M54 -> 8115.838206 | O54: 3
L55: Uo [W/(m2 K)]: | M55: =1/((M52+M53+M54)) -> 1164.392711 | N55: =(M65-M62)*M55 -> 8115.817198 | O55: 4
L56: DTw,i [C] | M56: =M50/(1/M55)*(Q12/(Q11*M48)) -> 5.346469682
L57: Tw [C] | M57: =M32+M56 -> 29.59446968
L58: DTw [C]: | M58: =M56/(Q12/(Q11*M48))*((Q12-Q11)/2/1000/Q18)*(Q12/Q14) -> 0.4857952416
K61: Location
K62: 1 | L62: Tcold [C]: | M62: =M32 -> 24.248
K63: 2 | L63: Tw,i [C]: | M63: 29.59446547
K64: 3 | L64: Tw,o [C]: | M64: 29.59601889
K65: 4 | L65: Thot [C]: | M65: =M12 -> 31.218
L67: (qhot/L-qwo/L)^2 | M67: =(N54-N55)^2 -> 0.0004413286916
L68: (qwo/L-qwi/L)^2 | M68: =(N53-N54)^2 -> 0.0006773887729
L69: (qwi/L-qcold/L)^2 | M69: =(N52-N53)^2 -> 0.002853845961
